[Event "BL 2024-25"]
[Site "Austria"]
[Date "2024.10.10"]
[Round "2.36"]
[White "Baidetskyi, Valentin"]
[Black "Weber, Samuel"]
[Result "1-0"]
[Annotator "TA"]
[ECO "B12"]
[WhiteElo "2505"]
[BlackElo "2256"]
[PlyCount "81"]
[EventDate "2024.08.28"]
[EventType "team-tourn"]
[EventCountry "AUT"]
[SourceTitle "playchess.com"]
[Source "ChessBase"]
[SourceQuality "1"]
[WhiteTeam "Pinggau-Friedberg"]
[BlackTeam "Salzburg"]
[TimeControl "40/5400+30:1800+30"]

{[%evp 9,80,-9,4,-24,7,-1,-11,-37,-30,-26,-28,-28,-18,-35,-34,-45,0,-12,18,18,0,-122,-103,-129,0,0,-27,-15,-30,-135,-140,-117,-151,-177,-104,-97,-42,-243,-247,-234,-213,-237,-125,-119,12,12,114,108,237,175,177,183,175,181,182,176,180,164,142,66,193,170,375,366,29989,29990,29992,29993,29993,29994,29998,29999,29999]} 1. e4 {[%emt 0:00:03]} c6 {[%emt 0:00:31]} 2. d4 {[%emt 0:00:07]} d5 {[%emt 0:00:06]} 3. f3 {[%emt 0:00:02]} e6 {[%emt 0:00:16]} 4. Nc3 {[%emt 0:00:09]} Bb4 {[%emt 0:00:44]} 5. Bd2 {[%emt 0:00:18]} Ne7 {[%emt 0:09:43]} 6. h4 {[%emt 0:00:09]} Nd7 {[%emt 0:15:06]} 7. h5 {[%emt 0:01:47]} h6 {[%emt 0:00:24]} 8. e5 {[%emt 0:14:22] The position is equal.} Nf5 {[%emt 0:04:01]} 9. Nce2 {[%emt 0:08:07]} Be7 {[%emt 0:05:11]} 10. Bf4 {[%emt 0:40:41]} O-O {[%emt 0:14:43] Strongly threatening ...c5.} 11. Qd2 {[%emt 0:08:09]} c5 {[%emt 0:03:39]} 12. dxc5 {[%emt 0:00:20]} f6 {[%emt 0:04:05]} (12... Nxc5 $6 13. g4 Nh4 14. O-O-O $16) 13. exf6 {[%emt 0:01:02]} Bxf6 {[%emt 0:00:20]} 14. g4 $1 {[%emt 0:02:39]} Nh4 {[%emt 0:02:27]} (14... Bxb2 $6 15. Rb1 Bf6 16. gxf5 $16) 15. Bd6 {[%emt 0:02:00]} (15. O-O-O $11) 15... Bxb2 $17 {[%emt 0:10:40]} 16. Bxf8 {[%emt 0:09:28]} Bxa1 {[%emt 0:10:19]} (16... Qxf8 $17 17. Rd1 Bf6 (17... Nxf3+ 18. Nxf3 Qxf3 19. Rh3 $17)) 17. Bd6 $11 {[%emt 0:00:06]} Bf6 {[%emt 0:01:17]} 18. Nd4 {[%emt 0:04:06]} Ne5 {[%emt 0:00:30]} 19. Kd1 {[%emt 0:02:50] [#]} (19. Bxe5 $1 $11 {keeps the balance.} Bxe5 20. f4) 19... Nf7 $1 $17 {[%emt 0:01:52]} 20. Bg3 {[%emt 0:01:51]} e5 {[%emt 0:01:21]} 21. Nb5 {[%emt 0:00:41] [#]} Be6 {[%emt 0:01:10]} ({Black should try} 21... e4 $1 $19 22. Be2 Bd7) 22. Qe1 {[%emt 0:00:23][%cal Rg3h4]} a6 {[%emt 0:00:49]} (22... Qc8 $17 {[%cal Oc8c5] aiming for ...Qxc5!} 23. Bf2 (23. Bxh4 $2 Bxh4 24. Qxh4 Qxc5 $19) (23. Rxh4 $2 Qxc5 24. Rh2 Bd7 $19) 23... Qc6 (23... a6 24. Nd6 $11) 24. Rxh4 (24. Bxh4 Bxh4 25. Rxh4 Qxc5 $17) 24... Bxh4 25. Bxh4 Qxc5) 23. Nc3 $2 {[%emt 0:00:06] [#]} (23. Nd6 $15 Nxd6 24. cxd6 Nxf3 25. Nxf3 Bxg4 26. Be2 Qxd6 27. Nxe5 Bxe5 28. Bxg4 (28. Bxe5 $2 Qxe5 29. Bxg4 Qd4+ 30. Kc1 Qxg4 $19) 28... Bxg3 29. Qe6+ Kh8 30. Qxd6 Bxd6 31. Bf3) 23... Nxf3 $1 $19 {[%emt 0:01:05][%mdl 512]} 24. Nxf3 {[%emt 0:00:01]} e4 {[%emt 0:00:14]} 25. Nh4 {[%emt 0:00:13]} Bxg4+ {[%emt 0:06:00]} (25... Qa5 $19 26. Nxd5 Qd8 (26... Bxg4+ 27. Be2 $11) (26... Qxe1+ 27. Bxe1 Bxd5 28. Nf5 $17)) 26. Be2 $17 {[%emt 0:00:05]} Bxe2+ {[%emt 0:06:57]} (26... Bd7 $17 {...Rc8 would now be deadly.} 27. Nb1 (27. Nxd5 $2 {is the wrong capture.} Bc6 $19) 27... d4) 27. Nxe2 $11 {[%emt 0:00:15]} b6 {[%emt 0:00:00]} (27... Rc8 $11) 28. c6 $16 {[%emt 0:00:08][%cal Bc5c6,Bc6c7][%mdl 32] c7 is the strong threat.} Qe7 {[%emt 0:00:00]} (28... Rc8 $16) 29. c7 {[%emt 0:00:58]} Ne5 {[%emt 0:00:00]} 30. Qd2 {[%emt 0:00:42]} Qd7 {[%emt 0:01:20]} 31. Bxe5 {[%emt 0:03:19]} Bxe5 {[%emt 0:00:01]} 32. Ng6 {[%emt 0:00:08] Wards off Kh7} Bxc7 {[%emt 0:00:24]} 33. Rf1 $36 {[%emt 0:00:09][%cal Of1f5][%mdl 2048] White has strong initiative.} Rd8 {[%emt 0:00:46]} 34. Kc1 {[%emt 0:00:46] White has more active pieces.} ({Better is} 34. Qd4 $16) 34... Qd6 {[%emt 0:00:55]} ({Black should play} 34... Qb5 $1 $14) 35. Qc3 {[%emt 0:00:34] And now Nd4 would win.} b5 $2 {[%emt 0:00:23]} (35... Re8 {was worth a try.} 36. Rf5 Bd8) 36. Nd4 $18 {[%emt 0:00:11]} Bb6 $2 {[%emt 0:00:34]} (36... Qg3 $18 37. Qxg3 Bxg3) 37. Nf5 {[%emt 0:00:06][%csl Gf5,LRd6,LRg7][%cal Rc3g7] A dynamic duo of knights. White mates.} Qc7 {[%emt 0:00:36]} 38. Nge7+ {[%emt 0:00:03]} Kf7 {[%emt 0:00:24][%cal Bg8f7,Bf7e7,Be7d7][%mdl 32]} 39. Nxg7+ {[%emt 0:00:47]} Kxe7 {[%emt 0:00:25]} 40. Qf6+ {[%emt 0:00:01]} Kd7 {[%emt 0:00:35]} 41. Qe6# {[%emt 0:30:03] Weighted Error Value: White=0.28 (precise) /Black=0.52.  Loses game:     	White=1     	---        Mistake:       	White=3     	Black=10     Inaccurate:     	White=1     	Black=3      OK:         	White=12    	Black=11     Best:        	White=4     	Black=1      Strong:       	White=1     	Black=1} 1-0